[Event "Titled Tuesday Blitz July 6 2021"]
[White "Mickiewicz, Piotr"]
[Black "Khanin, Semen"]
[WhiteFideId "1114891"]
[BlackFideId "4111990"]
[WhiteElo "2263"]
[BlackElo "2521"]
[Result "0-1"]
[Round "01"]
[TimeControl "180+1"]
[Date "2021.07.06"]
[WhiteClock "0:00:06"]
[BlackClock "0:00:13"]

1. Nf3 {[%clk 0:02:56]}  g6 {[%clk 0:02:57]} 2. e4 {[%clk 0:02:52]}  Bg7 {[%clk 0:02:57]} 3. Bc4 {[%clk 0:02:52]}  d6 {[%clk 0:02:56]} 4. O-O {[%clk 0:02:51]}  Nf6 {[%clk 0:02:56]} 5. d3 {[%clk 0:02:49]}  O-O {[%clk 0:02:56]} 6. h3 {[%clk 0:02:48]}  c6 {[%clk 0:02:54]} 7. Bb3 {[%clk 0:02:45]}  a5 {[%clk 0:02:53]} 8. a4 {[%clk 0:02:44]}  Na6 {[%clk 0:02:53]} 9. c3 {[%clk 0:02:41]}  e5 {[%clk 0:02:47]} 10. Re1 {[%clk 0:02:29]}  h6 {[%clk 0:02:44]} 11. Nbd2 {[%clk 0:02:25]}  Nh5 {[%clk 0:02:44]} 12. Nf1 {[%clk 0:02:24]}  Kh7 {[%clk 0:02:44]} 13. d4 {[%clk 0:02:15]}  exd4 {[%clk 0:02:35]} 14. cxd4 {[%clk 0:01:34]}  Nb4 {[%clk 0:02:33]} 15. Be3 {[%clk 0:01:26]}  f5 {[%clk 0:02:06]} 16. e5 {[%clk 0:01:17]}  f4 {[%clk 0:02:03]} 17. Bd2 {[%clk 0:01:16]}  Nd3 {[%clk 0:02:03]} 18. Re2 {[%clk 0:01:10]}  dxe5 {[%clk 0:02:01]} 19. dxe5 {[%clk 0:01:09]}  Bf5 {[%clk 0:02:01]} 20. Bc3 {[%clk 0:01:08]}  Qb6 {[%clk 0:01:55]} 21. e6 {[%clk 0:00:57]}  Rfe8 {[%clk 0:01:45]} 22. e7 {[%clk 0:00:45]}  Ng3 {[%clk 0:01:28]} 23. Nxg3 {[%clk 0:00:35]}  fxg3 {[%clk 0:01:29]} 24. Bf7 {[%clk 0:00:26]}  Nxf2 {[%clk 0:01:27]} 25. Qd6 {[%clk 0:00:17]}  Rad8 {[%clk 0:00:22]} 26. exd8=Q {[%clk 0:00:12]}  Rxd8 {[%clk 0:00:22]} 27. Bd4 {[%clk 0:00:11]}  Bxd4 {[%clk 0:00:20]} 28. Qe7 {[%clk 0:00:11]}  Bg7 {[%clk 0:00:19]} 29. Bc4 {[%clk 0:00:08]}  Nxh3+ {[%clk 0:00:16]} 30. Kh1 {[%clk 0:00:08]}  Nf2+ {[%clk 0:00:16]} 31. Rxf2 {[%clk 0:00:08]}  gxf2 {[%clk 0:00:16]} 32. Ne5 {[%clk 0:00:07]}  Rd4 {[%clk 0:00:15]} 33. Nf7 {[%clk 0:00:06]}  Rxc4 {[%clk 0:00:13]} 0-1


[Site "https://www.chess.com"]

[Event "Titled Tuesday Blitz July 6 2021"]
[White "Moon_stone123"]
[Black "Ibrahimli, Murad"]
[BlackFideId "13410229"]
[WhiteElo "2415"]
[BlackElo "2109"]
[Result "0-1"]
[Round "01"]
[TimeControl "180+1"]
[Date "2021.07.06"]
[WhiteClock "0:00:20"]
[BlackClock "0:01:18"]

1. Nf3 {[%clk 0:02:58]}  Nf6 {[%clk 0:02:59]} 2. g3 {[%clk 0:02:58]}  g6 {[%clk 0:02:59]} 3. Bg2 {[%clk 0:02:54]}  Bg7 {[%clk 0:02:59]} 4. O-O {[%clk 0:02:55]}  O-O {[%clk 0:02:56]} 5. c4 {[%clk 0:02:55]}  d6 {[%clk 0:02:50]} 6. d4 {[%clk 0:02:55]}  Nc6 {[%clk 0:02:51]} 7. Nc3 {[%clk 0:02:55]}  a6 {[%clk 0:02:49]} 8. Bf4 {[%clk 0:02:46]}  Nd7 {[%clk 0:02:46]} 9. d5 {[%clk 0:02:29]}  Nce5 {[%clk 0:02:32]} 10. Nxe5 {[%clk 0:02:27]}  Nxe5 {[%clk 0:02:33]} 11. Qb3 {[%clk 0:02:04]}  b5 {[%clk 0:02:33]} 12. cxb5 {[%clk 0:01:58]}  axb5 {[%clk 0:02:34]} 13. Nxb5 {[%clk 0:01:58]}  Ba6 {[%clk 0:02:34]} 14. a4 {[%clk 0:01:58]}  Rb8 {[%clk 0:02:34]} 15. Rac1 {[%clk 0:01:53]}  Qd7 {[%clk 0:02:18]} 16. Qc2 {[%clk 0:01:45]}  Bxb5 {[%clk 0:02:08]} 17. axb5 {[%clk 0:01:45]}  Rfc8 {[%clk 0:02:09]} 18. Bxe5 {[%clk 0:01:37]}  Bxe5 {[%clk 0:02:09]} 19. Qc6 {[%clk 0:01:38]}  Qxc6 {[%clk 0:02:08]} 20. Rxc6 {[%clk 0:01:35]}  Rxb5 {[%clk 0:02:07]} 21. Rfc1 {[%clk 0:01:34]}  Rxb2 {[%clk 0:01:47]} 22. Rxc7 {[%clk 0:01:26]}  Rxc7 {[%clk 0:01:48]} 23. Rxc7 {[%clk 0:01:27]}  Rxe2 {[%clk 0:01:48]} 24. Rxe7 {[%clk 0:01:20]}  Kf8 {[%clk 0:01:48]} 25. Ra7 {[%clk 0:01:17]}  Bd4 {[%clk 0:01:47]} 26. Ra8+ {[%clk 0:01:07]}  Kg7 {[%clk 0:01:47]} 27. Ra6 {[%clk 0:00:50]}  Rxf2 {[%clk 0:01:34]} 28. Kh1 {[%clk 0:00:48]}  Bc5 {[%clk 0:01:32]} 29. h4 {[%clk 0:00:49]}  h5 {[%clk 0:01:31]} 30. Kh2 {[%clk 0:00:49]}  f5 {[%clk 0:01:31]} 31. Rc6 {[%clk 0:00:47]}  Kf6 {[%clk 0:01:30]} 32. Rc8 {[%clk 0:00:47]}  Re2 {[%clk 0:01:25]} 33. Kh3 {[%clk 0:00:44]}  Re3 {[%clk 0:01:23]} 34. Kh2 {[%clk 0:00:42]}  Rc3 {[%clk 0:01:23]} 35. Re8 {[%clk 0:00:41]}  Bf2 {[%clk 0:01:20]} 36. Re6+ {[%clk 0:00:38]}  Kf7 {[%clk 0:01:20]} 37. g4 {[%clk 0:00:20]}  fxg4 {[%clk 0:01:18]} 0-1


[Site "https://www.chess.com"]

[Event "Titled Tuesday Blitz July 6 2021"]
[White "Moroni, Luca Jr"]
[Black "Vasli, Aref"]
[WhiteFideId "865834"]
[BlackFideId "417521"]
[WhiteElo "2491"]
[BlackElo "2257"]
[Result "1-0"]
[Round "01"]
[TimeControl "180+1"]
[Date "2021.07.06"]
[WhiteClock "0:00:50"]
[BlackClock "0:00:58"]

1. d4 {[%clk 0:03:00]}  Nf6 {[%clk 0:02:59]} 2. c4 {[%clk 0:03:00]}  e6 {[%clk 0:02:59]} 3. Nc3 {[%clk 0:03:00]}  c5 {[%clk 0:02:59]} 4. Nf3 {[%clk 0:02:58]}  cxd4 {[%clk 0:02:48]} 5. Nxd4 {[%clk 0:02:59]}  Nc6 {[%clk 0:02:48]} 6. e4 {[%clk 0:02:55]}  Bb4 {[%clk 0:02:45]} 7. Nxc6 {[%clk 0:02:55]}  dxc6 {[%clk 0:02:41]} 8. Qxd8+ {[%clk 0:02:51]}  Kxd8 {[%clk 0:02:42]} 9. e5 {[%clk 0:02:50]}  Ne4 {[%clk 0:02:40]} 10. a3 {[%clk 0:02:29]}  Bxc3+ {[%clk 0:02:35]} 11. bxc3 {[%clk 0:02:29]}  Kc7 {[%clk 0:02:25]} 12. h4 {[%clk 0:02:12]}  h5 {[%clk 0:02:21]} 13. Rh3 {[%clk 0:02:03]}  Bd7 {[%clk 0:02:12]} 14. Bd3 {[%clk 0:01:49]}  Nc5 {[%clk 0:02:12]} 15. Bc2 {[%clk 0:01:49]}  b6 {[%clk 0:02:09]} 16. Bg5 {[%clk 0:01:42]}  Rae8 {[%clk 0:02:04]} 17. O-O-O {[%clk 0:01:26]}  Bc8 {[%clk 0:02:00]} 18. Rf3 {[%clk 0:01:24]}  Rhf8 {[%clk 0:02:00]} 19. Rf4 {[%clk 0:01:22]}  Ba6 {[%clk 0:01:55]} 20. Kb2 {[%clk 0:01:22]}  Nd7 {[%clk 0:01:45]} 21. Rfd4 {[%clk 0:01:20]}  Nc5 {[%clk 0:01:42]} 22. R1d2 {[%clk 0:01:07]}  f6 {[%clk 0:01:40]} 23. Bf4 {[%clk 0:01:07]}  f5 {[%clk 0:01:28]} 24. Bg5 {[%clk 0:01:05]}  Rf7 {[%clk 0:01:27]} 25. Bd1 {[%clk 0:01:04]}  g6 {[%clk 0:01:27]} 26. Bf3 {[%clk 0:01:02]}  Rd7 {[%clk 0:01:23]} 27. Rd6 {[%clk 0:00:57]}  Bxc4 {[%clk 0:01:13]} 28. Rxc6+ {[%clk 0:00:55]}  Kb8 {[%clk 0:01:13]} 29. Rxd7 {[%clk 0:00:54]}  Nxd7 {[%clk 0:01:10]} 30. Rxc4 {[%clk 0:00:54]}  Rc8 {[%clk 0:01:01]} 31. Rxc8+ {[%clk 0:00:51]}  Kxc8 {[%clk 0:01:02]} 32. Bf4 {[%clk 0:00:52]}  Nc5 {[%clk 0:01:02]} 33. Kc2 {[%clk 0:00:51]}  Kd7 {[%clk 0:01:03]} 34. Be2 {[%clk 0:00:51]}  Kc6 {[%clk 0:01:01]} 35. f3 {[%clk 0:00:51]}  b5 {[%clk 0:01:01]} 36. g4 {[%clk 0:00:51]}  a5 {[%clk 0:00:58]} 37. gxh5 {[%clk 0:00:50]}  gxh5 {[%clk 0:00:58]} 38. Be3 {[%clk 0:00:50]}  Nd7 {[%clk 0:00:58]} 39. f4 {[%clk 0:00:50]} 1-0


[Site "https://www.chess.com"]

[Event "Titled Tuesday Blitz July 6 2021"]
[White "Noritsyn, Nikolay"]
[Black "Omariev, Maksim"]
[WhiteFideId "2604922"]
[BlackFideId "4193423"]
[WhiteElo "2527"]
[BlackElo "2347"]
[Result "1-0"]
[Round "01"]
[TimeControl "180+1"]
[Date "2021.07.06"]
[WhiteClock "0:01:26"]
[BlackClock "0:00:02"]

1. Nf3 {[%clk 0:02:58]}  d5 {[%clk 0:03:00]} 2. d4 {[%clk 0:02:59]}  c6 {[%clk 0:03:01]} 3. c4 {[%clk 0:02:59]}  g6 {[%clk 0:02:43]} 4. Nc3 {[%clk 0:02:58]}  h6 {[%clk 0:02:40]} 5. e4 {[%clk 0:02:56]}  dxe4 {[%clk 0:02:40]} 6. Nxe4 {[%clk 0:02:56]}  Bg7 {[%clk 0:02:40]} 7. h3 {[%clk 0:02:56]}  Nd7 {[%clk 0:02:40]} 8. Be2 {[%clk 0:02:53]}  Ngf6 {[%clk 0:02:38]} 9. Nxf6+ {[%clk 0:02:52]}  Nxf6 {[%clk 0:02:39]} 10. O-O {[%clk 0:02:52]}  O-O {[%clk 0:02:38]} 11. Qb3 {[%clk 0:02:48]}  b6 {[%clk 0:02:38]} 12. Bf4 {[%clk 0:02:44]}  Ne4 {[%clk 0:02:37]} 13. Rad1 {[%clk 0:02:41]}  Be6 {[%clk 0:02:33]} 14. Rfe1 {[%clk 0:02:40]}  Nd6 {[%clk 0:02:18]} 15. Ne5 {[%clk 0:02:26]}  Qc8 {[%clk 0:02:13]} 16. Qf3 {[%clk 0:02:24]}  Bxe5 {[%clk 0:01:22]} 17. dxe5 {[%clk 0:02:17]}  Nxc4 {[%clk 0:01:23]} 18. b3 {[%clk 0:02:15]}  Na3 {[%clk 0:01:08]} 19. Bxh6 {[%clk 0:02:12]}  Bd5 {[%clk 0:00:57]} 20. Qg3 {[%clk 0:02:07]}  Rd8 {[%clk 0:00:56]} 21. Bd3 {[%clk 0:02:06]}  Kh7 {[%clk 0:00:44]} 22. Qh4 {[%clk 0:02:04]}  Rh8 {[%clk 0:00:36]} 23. Bc1+ {[%clk 0:01:44]}  Kg8 {[%clk 0:00:35]} 24. Qg3 {[%clk 0:01:35]}  Bxg2 {[%clk 0:00:04]} 25. Kxg2 {[%clk 0:01:33]}  Nb5 {[%clk 0:00:04]} 26. e6 {[%clk 0:01:30]}  Kg7 {[%clk 0:00:01]} 27. Bb2+ {[%clk 0:01:27]}  f6 {[%clk 0:00:02]} 28. Qxg6+ {[%clk 0:01:26]}  Kf8 {[%clk 0:00:02]} 29. Qf7# {[%clk 0:01:26]} 1-0


[Site "https://www.chess.com"]

[Event "Titled Tuesday Blitz July 6 2021"]
[White "Obolentseva, Alexandra"]
[Black "Yanchenko, Roman"]
[WhiteFideId "24153648"]
[BlackFideId "4137329"]
[WhiteElo "2113"]
[BlackElo "2514"]
[Result "0-1"]
[Round "01"]
[TimeControl "180+1"]
[Date "2021.07.06"]
[WhiteClock "0:00:46"]
[BlackClock "0:01:41"]

1. d4 {[%clk 0:02:53]}  d5 {[%clk 0:02:59]} 2. c4 {[%clk 0:02:50]}  c6 {[%clk 0:02:58]} 3. Nf3 {[%clk 0:02:47]}  Nf6 {[%clk 0:02:58]} 4. Nc3 {[%clk 0:02:45]}  g6 {[%clk 0:02:58]} 5. e3 {[%clk 0:02:40]}  Bg7 {[%clk 0:02:58]} 6. Bd3 {[%clk 0:02:40]}  O-O {[%clk 0:02:58]} 7. O-O {[%clk 0:02:39]}  Bf5 {[%clk 0:02:57]} 8. Bxf5 {[%clk 0:02:27]}  gxf5 {[%clk 0:02:57]} 9. Qc2 {[%clk 0:02:26]}  e6 {[%clk 0:02:57]} 10. Ne5 {[%clk 0:02:22]}  Nbd7 {[%clk 0:02:57]} 11. Nxd7 {[%clk 0:02:13]}  Qxd7 {[%clk 0:02:58]} 12. b3 {[%clk 0:02:12]}  Ne4 {[%clk 0:02:54]} 13. Bb2 {[%clk 0:02:09]}  b5 {[%clk 0:02:41]} 14. Nxe4 {[%clk 0:02:03]}  fxe4 {[%clk 0:02:40]} 15. Rac1 {[%clk 0:01:59]}  bxc4 {[%clk 0:02:40]} 16. bxc4 {[%clk 0:01:58]}  Rfb8 {[%clk 0:02:39]} 17. Ba3 {[%clk 0:01:57]}  f5 {[%clk 0:02:38]} 18. cxd5 {[%clk 0:01:54]}  cxd5 {[%clk 0:02:38]} 19. Qc7 {[%clk 0:01:54]}  Rb7 {[%clk 0:02:33]} 20. Qxd7 {[%clk 0:01:54]}  Rxd7 {[%clk 0:02:34]} 21. Rc6 {[%clk 0:01:52]}  e5 {[%clk 0:02:33]} 22. dxe5 {[%clk 0:01:52]}  Bxe5 {[%clk 0:02:33]} 23. Rd1 {[%clk 0:01:51]}  Rad8 {[%clk 0:02:16]} 24. Bc5 {[%clk 0:01:47]}  d4 {[%clk 0:02:14]} 25. exd4 {[%clk 0:01:38]}  Bxd4 {[%clk 0:02:14]} 26. Bxd4 {[%clk 0:01:32]}  Rxd4 {[%clk 0:02:15]} 27. Rxd4 {[%clk 0:01:31]}  Rxd4 {[%clk 0:02:16]} 28. g4 {[%clk 0:01:28]}  f4 {[%clk 0:02:04]} 29. Rc8+ {[%clk 0:01:23]}  Kg7 {[%clk 0:02:03]} 30. Rc7+ {[%clk 0:01:24]}  Kg6 {[%clk 0:02:03]} 31. Rxa7 {[%clk 0:01:23]}  f3 {[%clk 0:01:50]} 32. h4 {[%clk 0:01:21]}  Rd1+ {[%clk 0:01:50]} 33. Kh2 {[%clk 0:01:21]}  e3 {[%clk 0:01:50]} 34. Ra6+ {[%clk 0:01:18]}  Kf7 {[%clk 0:01:46]} 35. Ra7+ {[%clk 0:01:18]}  Ke6 {[%clk 0:01:46]} 36. Ra6+ {[%clk 0:01:16]}  Kd7 {[%clk 0:01:44]} 37. Ra7+ {[%clk 0:01:08]}  Kc6 {[%clk 0:01:44]} 38. fxe3 {[%clk 0:01:03]}  f2 {[%clk 0:01:45]} 39. Rf7 {[%clk 0:01:02]}  f1=Q {[%clk 0:01:44]} 40. Rxf1 {[%clk 0:01:02]}  Rxf1 {[%clk 0:01:44]} 41. Kg2 {[%clk 0:01:03]}  Ra1 {[%clk 0:01:44]} 42. Kf3 {[%clk 0:01:02]}  Kd5 {[%clk 0:01:45]} 43. Kf4 {[%clk 0:01:02]}  Rxa2 {[%clk 0:01:44]} 44. Kg5 {[%clk 0:01:03]}  Ra4 {[%clk 0:01:44]} 45. h5 {[%clk 0:00:58]}  Ke5 {[%clk 0:01:44]} 46. Kh6 {[%clk 0:00:57]}  Rxg4 {[%clk 0:01:40]} 47. Kxh7 {[%clk 0:00:58]}  Kf6 {[%clk 0:01:41]} 48. h6 {[%clk 0:00:52]}  Kf7 {[%clk 0:01:41]} 49. e4 {[%clk 0:00:47]}  Rxe4 {[%clk 0:01:41]} 50. Kh8 {[%clk 0:00:47]}  Re3 {[%clk 0:01:41]} 51. Kh7 {[%clk 0:00:46]}  Re6 {[%clk 0:01:41]} 52. Kh8 {[%clk 0:00:46]}  Rxh6# {[%clk 0:01:41]} 0-1


[Site "https://www.chess.com"]

[Event "Titled Tuesday Blitz July 6 2021"]
[White "Obregon, Andres Carlos"]
[Black "Tomiello, Lucas Costamilan"]
[WhiteFideId "111724"]
[BlackFideId "22701940"]
[WhiteElo "2572"]
[BlackElo "1945"]
[Result "1-0"]
[Round "01"]
[TimeControl "180+1"]
[Date "2021.07.06"]
[WhiteClock "0:01:30"]
[BlackClock "0:00:53"]

1. d4 {[%clk 0:02:59]}  Nf6 {[%clk 0:03:00]} 2. Bf4 {[%clk 0:02:58]}  g6 {[%clk 0:02:58]} 3. Nc3 {[%clk 0:02:55]}  d5 {[%clk 0:02:58]} 4. Nb5 {[%clk 0:02:53]}  Na6 {[%clk 0:02:56]} 5. e3 {[%clk 0:02:52]}  c6 {[%clk 0:02:54]} 6. Nc3 {[%clk 0:02:50]}  Nc7 {[%clk 0:02:54]} 7. Nf3 {[%clk 0:02:47]}  Bg7 {[%clk 0:02:54]} 8. h3 {[%clk 0:02:40]}  O-O {[%clk 0:02:54]} 9. Bd3 {[%clk 0:02:39]}  Bf5 {[%clk 0:02:51]} 10. Bxf5 {[%clk 0:02:35]}  gxf5 {[%clk 0:02:52]} 11. g4 {[%clk 0:02:29]}  Ne6 {[%clk 0:02:26]} 12. Be5 {[%clk 0:02:17]}  Nd7 {[%clk 0:01:56]} 13. gxf5 {[%clk 0:02:12]}  Nxe5 {[%clk 0:01:51]} 14. Nxe5 {[%clk 0:02:09]}  Ng5 {[%clk 0:01:36]} 15. h4 {[%clk 0:01:59]}  Ne4 {[%clk 0:01:34]} 16. Nxe4 {[%clk 0:01:57]}  dxe4 {[%clk 0:01:35]} 17. Qg4 {[%clk 0:01:54]}  Kh8 {[%clk 0:01:31]} 18. Qxe4 {[%clk 0:01:51]}  c5 {[%clk 0:01:23]} 19. O-O-O {[%clk 0:01:47]}  cxd4 {[%clk 0:01:23]} 20. exd4 {[%clk 0:01:45]}  Rc8 {[%clk 0:01:14]} 21. Kb1 {[%clk 0:01:44]}  Qb6 {[%clk 0:01:06]} 22. Rhg1 {[%clk 0:01:40]}  a5 {[%clk 0:01:01]} 23. Nd7 {[%clk 0:01:37]}  Qb5 {[%clk 0:00:53]} 24. Nxf8 {[%clk 0:01:36]}  Rxf8 {[%clk 0:00:53]} 25. Qxe7 {[%clk 0:01:30]} 1-0


[Site "https://www.chess.com"]

[Event "Titled Tuesday Blitz July 6 2021"]
[White "Oganisian, Roman"]
[Black "Zubov, Alexander"]
[WhiteFideId "4153006"]
[BlackFideId "14109409"]
[WhiteElo "2204"]
[BlackElo "2740"]
[Result "0-1"]
[Round "01"]
[TimeControl "180+1"]
[Date "2021.07.06"]
[WhiteClock "0:00:04"]
[BlackClock "0:00:19"]

1. e4 {[%clk 0:03:00]}  c5 {[%clk 0:02:56]} 2. Nf3 {[%clk 0:02:58]}  e6 {[%clk 0:02:55]} 3. Nc3 {[%clk 0:02:55]}  a6 {[%clk 0:02:55]} 4. g4 {[%clk 0:02:54]}  d5 {[%clk 0:02:53]} 5. Bg2 {[%clk 0:02:50]}  Nc6 {[%clk 0:02:47]} 6. d3 {[%clk 0:02:46]}  d4 {[%clk 0:02:43]} 7. Ne2 {[%clk 0:02:45]}  e5 {[%clk 0:02:38]} 8. g5 {[%clk 0:02:10]}  h6 {[%clk 0:02:24]} 9. Ng3 {[%clk 0:02:05]}  hxg5 {[%clk 0:02:21]} 10. Bxg5 {[%clk 0:02:01]}  Be7 {[%clk 0:02:19]} 11. h4 {[%clk 0:01:55]}  Qb6 {[%clk 0:01:59]} 12. Qc1 {[%clk 0:01:08]}  c4 {[%clk 0:01:42]} 13. Bxe7 {[%clk 0:00:46]}  Ngxe7 {[%clk 0:01:41]} 14. Qg5 {[%clk 0:00:46]}  Qxb2 {[%clk 0:01:28]} 15. O-O {[%clk 0:00:45]}  cxd3 {[%clk 0:01:02]} 16. cxd3 {[%clk 0:00:42]}  Qb5 {[%clk 0:01:01]} 17. Nf5 {[%clk 0:00:21]}  Bxf5 {[%clk 0:00:48]} 18. exf5 {[%clk 0:00:22]}  f6 {[%clk 0:00:38]} 19. Qxg7 {[%clk 0:00:20]}  Rg8 {[%clk 0:00:38]} 20. Qxf6 {[%clk 0:00:20]}  Qd5 {[%clk 0:00:38]} 21. Ng5 {[%clk 0:00:19]}  e4 {[%clk 0:00:26]} 22. Bxe4 {[%clk 0:00:15]}  Qe5 {[%clk 0:00:24]} 23. Qf7+ {[%clk 0:00:15]}  Kd7 {[%clk 0:00:24]} 24. Qe6+ {[%clk 0:00:14]}  Qxe6 {[%clk 0:00:24]} 25. fxe6+ {[%clk 0:00:15]}  Kc7 {[%clk 0:00:23]} 26. f4 {[%clk 0:00:15]}  Rh8 {[%clk 0:00:24]} 27. f5 {[%clk 0:00:14]}  Rxh4 {[%clk 0:00:24]} 28. Nf3 {[%clk 0:00:11]}  Rf4 {[%clk 0:00:23]} 29. Nh2 {[%clk 0:00:09]}  Rg8+ {[%clk 0:00:21]} 30. Kh1 {[%clk 0:00:09]}  Rh4 {[%clk 0:00:22]} 31. f6 {[%clk 0:00:08]}  Rgh8 {[%clk 0:00:22]} 32. Rf2 {[%clk 0:00:08]}  Nc8 {[%clk 0:00:21]} 33. f7 {[%clk 0:00:07]}  Rf8 {[%clk 0:00:20]} 34. Rg1 {[%clk 0:00:07]}  N8e7 {[%clk 0:00:20]} 35. Rg4 {[%clk 0:00:05]}  Rh6 {[%clk 0:00:20]} 36. Rfg2 {[%clk 0:00:05]}  Rxe6 {[%clk 0:00:19]} 37. Rg8 {[%clk 0:00:05]}  Rxf7 {[%clk 0:00:19]} 38. Nf3 {[%clk 0:00:04]}  Nxg8 {[%clk 0:00:18]} 39. Rxg8 {[%clk 0:00:04]}  Rxe4 {[%clk 0:00:19]} 0-1


[Site "https://www.chess.com"]

[Event "Titled Tuesday Blitz July 6 2021"]
[White "Pavlidis, Anastasios"]
[Black "Bordi, Kevin"]
[WhiteFideId "4208404"]
[BlackFideId "621862"]
[WhiteElo "2136"]
[BlackElo "2751"]
[Result "0-1"]
[Round "01"]
[TimeControl "180+1"]
[Date "2021.07.06"]
[WhiteClock "0:02:08"]
[BlackClock "0:00:39"]

1. d4 {[%clk 0:02:58]}  d5 {[%clk 0:03:00]} 2. Nf3 {[%clk 0:02:58]}  Nf6 {[%clk 0:03:00]} 3. Bf4 {[%clk 0:02:57]}  e6 {[%clk 0:02:57]} 4. e3 {[%clk 0:02:57]}  Bd6 {[%clk 0:02:56]} 5. Bd3 {[%clk 0:02:56]}  Bxf4 {[%clk 0:02:56]} 6. exf4 {[%clk 0:02:56]}  O-O {[%clk 0:02:56]} 7. O-O {[%clk 0:02:56]}  c5 {[%clk 0:02:53]} 8. c3 {[%clk 0:02:55]}  b6 {[%clk 0:02:45]} 9. Nbd2 {[%clk 0:02:55]}  Ba6 {[%clk 0:02:42]} 10. Bxa6 {[%clk 0:02:54]}  Nxa6 {[%clk 0:02:43]} 11. Qe2 {[%clk 0:02:54]}  Nb8 {[%clk 0:02:41]} 12. Ne5 {[%clk 0:02:54]}  Qc7 {[%clk 0:02:40]} 13. Rfe1 {[%clk 0:02:53]}  Nc6 {[%clk 0:02:35]} 14. Ndf3 {[%clk 0:02:53]}  Ne4 {[%clk 0:02:31]} 15. Nxc6 {[%clk 0:02:51]}  Qxc6 {[%clk 0:02:31]} 16. Ne5 {[%clk 0:02:52]}  Qc7 {[%clk 0:02:31]} 17. f3 {[%clk 0:02:52]}  Nd6 {[%clk 0:02:29]} 18. Rac1 {[%clk 0:02:51]}  Rac8 {[%clk 0:02:27]} 19. g3 {[%clk 0:02:51]}  cxd4 {[%clk 0:02:25]} 20. cxd4 {[%clk 0:02:51]}  Qxc1 {[%clk 0:02:25]} 21. Rxc1 {[%clk 0:02:51]}  Rxc1+ {[%clk 0:02:26]} 22. Kg2 {[%clk 0:02:51]}  Rfc8 {[%clk 0:02:10]} 23. Kh3 {[%clk 0:02:49]}  h6 {[%clk 0:01:55]} 24. b3 {[%clk 0:02:45]}  Nf5 {[%clk 0:01:49]} 25. Qd3 {[%clk 0:02:42]}  R1c3 {[%clk 0:01:43]} 26. Qd2 {[%clk 0:02:37]}  Rc2 {[%clk 0:01:37]} 27. Qd3 {[%clk 0:02:36]}  Rxa2 {[%clk 0:01:32]} 28. Qb5 {[%clk 0:02:35]}  Rac2 {[%clk 0:01:27]} 29. Qd7 {[%clk 0:02:32]}  R2c7 {[%clk 0:01:26]} 30. Qa4 {[%clk 0:02:31]}  Nd6 {[%clk 0:01:05]} 31. Qa2 {[%clk 0:02:26]}  a5 {[%clk 0:00:57]} 32. Qb1 {[%clk 0:02:24]}  b5 {[%clk 0:00:53]} 33. Qa1 {[%clk 0:02:19]}  Ra7 {[%clk 0:00:49]} 34. g4 {[%clk 0:02:17]}  a4 {[%clk 0:00:49]} 35. bxa4 {[%clk 0:02:17]}  bxa4 {[%clk 0:00:49]} 36. Nd3 {[%clk 0:02:17]}  a3 {[%clk 0:00:48]} 37. f5 {[%clk 0:02:14]}  a2 {[%clk 0:00:46]} 38. Nb4 {[%clk 0:02:14]}  Rca8 {[%clk 0:00:46]} 39. Nxa2 {[%clk 0:02:13]}  Rxa2 {[%clk 0:00:45]} 40. Qe1 {[%clk 0:02:13]}  exf5 {[%clk 0:00:44]} 41. Qe5 {[%clk 0:02:13]}  fxg4+ {[%clk 0:00:43]} 42. fxg4 {[%clk 0:02:13]}  Ne8 {[%clk 0:00:39]} 43. Qxd5 {[%clk 0:02:13]}  Nf6 {[%clk 0:00:39]} 44. Qb7 {[%clk 0:02:11]}  R8a3+ {[%clk 0:00:39]} 45. Kh4 {[%clk 0:02:08]}  g5# {[%clk 0:00:39]} 0-1


[Site "https://www.chess.com"]

[Event "Titled Tuesday Blitz July 6 2021"]
[White "Petriashvili, Nikoloz"]
[Black "Sviridova, Vlada"]
[WhiteFideId "13611216"]
[BlackFideId "24109606"]
[WhiteElo "2430"]
[BlackElo "2101"]
[Result "1-0"]
[Round "01"]
[TimeControl "180+1"]
[Date "2021.07.06"]
[WhiteClock "0:00:23"]
[BlackClock "0:00:13"]

1. e4 {[%clk 0:02:58]}  e6 {[%clk 0:03:00]} 2. d4 {[%clk 0:02:56]}  d5 {[%clk 0:03:00]} 3. Nd2 {[%clk 0:02:57]}  c5 {[%clk 0:03:00]} 4. Ngf3 {[%clk 0:02:51]}  cxd4 {[%clk 0:02:59]} 5. Nxd4 {[%clk 0:02:44]}  Nc6 {[%clk 0:02:52]} 6. Nxc6 {[%clk 0:02:42]}  bxc6 {[%clk 0:02:52]} 7. Bd3 {[%clk 0:02:42]}  Bd6 {[%clk 0:02:49]} 8. O-O {[%clk 0:02:39]}  Ne7 {[%clk 0:02:49]} 9. b3 {[%clk 0:02:36]}  Ng6 {[%clk 0:02:46]} 10. Bb2 {[%clk 0:02:35]}  O-O {[%clk 0:02:41]} 11. g3 {[%clk 0:02:20]}  e5 {[%clk 0:02:11]} 12. Re1 {[%clk 0:01:58]}  d4 {[%clk 0:02:04]} 13. Qh5 {[%clk 0:01:44]}  Be6 {[%clk 0:01:45]} 14. Nc4 {[%clk 0:01:40]}  Bc7 {[%clk 0:01:42]} 15. Ba3 {[%clk 0:01:38]}  Re8 {[%clk 0:01:42]} 16. Rf1 {[%clk 0:01:37]}  Qd7 {[%clk 0:01:39]} 17. f3 {[%clk 0:01:34]}  Kh8 {[%clk 0:01:29]} 18. Rae1 {[%clk 0:01:23]}  f6 {[%clk 0:01:29]} 19. g4 {[%clk 0:00:54]}  Nf4 {[%clk 0:01:24]} 20. Qh4 {[%clk 0:00:55]}  g5 {[%clk 0:01:08]} 21. Qh6 {[%clk 0:00:38]}  Qf7 {[%clk 0:01:00]} 22. h4 {[%clk 0:00:36]}  Rg8 {[%clk 0:00:54]} 23. hxg5 {[%clk 0:00:36]}  Rg6 {[%clk 0:00:41]} 24. Qh2 {[%clk 0:00:34]}  Rxg5 {[%clk 0:00:35]} 25. Kf2 {[%clk 0:00:33]}  Rag8 {[%clk 0:00:32]} 26. Bc1 {[%clk 0:00:29]}  Nxd3+ {[%clk 0:00:28]} 27. cxd3 {[%clk 0:00:28]}  R5g6 {[%clk 0:00:27]} 28. Rh1 {[%clk 0:00:27]}  Rd8 {[%clk 0:00:22]} 29. Qh5 {[%clk 0:00:27]}  Kg8 {[%clk 0:00:20]} 30. Rh4 {[%clk 0:00:24]}  Rd7 {[%clk 0:00:20]} 31. Reh1 {[%clk 0:00:24]}  Bxc4 {[%clk 0:00:20]} 32. bxc4 {[%clk 0:00:24]}  Bd6 {[%clk 0:00:19]} 33. Qf5 {[%clk 0:00:24]}  Bf8 {[%clk 0:00:18]} 34. Rxh7 {[%clk 0:00:23]}  Qxh7 {[%clk 0:00:16]} 35. Rxh7 {[%clk 0:00:23]}  Rxh7 {[%clk 0:00:13]} 36. Qxg6+ {[%clk 0:00:23]} 1-0


[Site "https://www.chess.com"]